[Event "Titled Tuesday Blitz August 22 Early 2023"]
[White "Mrudul Dehankar"]
[Black "Kriti Mayur Patel"]
[WhiteFideId "25096990"]
[BlackFideId "35061780"]
[WhiteElo "2435"]
[BlackElo "2083"]
[Result "0-1"]
[Round "4"]
[TimeControl "180+1"]
[Date "2023.08.22"]
[WhiteClock "0:00:00"]
[BlackClock "0:00:22"]
[Board "213"]

1. e4 {[%clk 0:02:56]}  e5 {[%clk 0:02:59]} 2. Nf3 {[%clk 0:02:56]}  Nc6 {[%clk 0:03:00]} 3. Bb5 {[%clk 0:02:57]}  a6 {[%clk 0:03:00]} 4. Ba4 {[%clk 0:02:58]}  Nf6 {[%clk 0:03:00]} 5. O-O {[%clk 0:02:57]}  b5 {[%clk 0:03:01]} 6. Bb3 {[%clk 0:02:57]}  Bc5 {[%clk 0:03:01]} 7. c3 {[%clk 0:02:50]}  d6 {[%clk 0:03:01]} 8. d4 {[%clk 0:02:50]}  Bb6 {[%clk 0:03:02]} 9. a4 {[%clk 0:02:49]}  Rb8 {[%clk 0:03:01]} 10. a5 {[%clk 0:02:39]}  Ba7 {[%clk 0:03:01]} 11. h3 {[%clk 0:02:33]}  h6 {[%clk 0:02:52]} 12. Be3 {[%clk 0:02:29]}  Ra8 {[%clk 0:02:50]} 13. Nbd2 {[%clk 0:01:56]}  O-O {[%clk 0:02:47]} 14. Re1 {[%clk 0:01:51]}  Bb7 {[%clk 0:02:46]} 15. Nf1 {[%clk 0:01:43]}  Re8 {[%clk 0:02:37]} 16. d5 {[%clk 0:01:37]}  Ne7 {[%clk 0:02:35]} 17. Ng3 {[%clk 0:01:34]}  Bxe3 {[%clk 0:02:32]} 18. Rxe3 {[%clk 0:01:33]}  Ng6 {[%clk 0:02:32]} 19. c4 {[%clk 0:01:29]}  c5 {[%clk 0:02:08]} 20. dxc6 {[%clk 0:01:20]}  Bxc6 {[%clk 0:02:08]} 21. Rd3 {[%clk 0:01:14]}  Nxe4 {[%clk 0:01:49]} 22. Nxe4 {[%clk 0:01:10]}  Bxe4 {[%clk 0:01:49]} 23. Rxd6 {[%clk 0:01:09]}  Qc7 {[%clk 0:01:25]} 24. cxb5 {[%clk 0:01:02]}  axb5 {[%clk 0:01:23]} 25. Rd7 {[%clk 0:01:01]}  Qc6 {[%clk 0:01:14]} 26. Bxf7+ {[%clk 0:00:57]}  Kh7 {[%clk 0:01:10]} 27. Rd6 {[%clk 0:00:32]}  Qb7 {[%clk 0:00:49]} 28. Bxe8 {[%clk 0:00:24]}  Rxe8 {[%clk 0:00:49]} 29. a6 {[%clk 0:00:20]}  Qa8 {[%clk 0:00:44]} 30. Nd2 {[%clk 0:00:15]}  Bxg2 {[%clk 0:00:42]} 31. Qg4 {[%clk 0:00:13]}  Nf4 {[%clk 0:00:32]} 32. Rd7 {[%clk 0:00:12]}  Rg8 {[%clk 0:00:29]} 33. Qg3 {[%clk 0:00:03]}  Ne2+ {[%clk 0:00:25]} 34. Kh2 {[%clk 0:00:03]}  Nxg3 {[%clk 0:00:25]} 35. fxg3 {[%clk 0:00:04]}  Bc6 {[%clk 0:00:24]} 36. Rd6 {[%clk 0:00:04]}  e4 {[%clk 0:00:24]} 37. Nb3 {[%clk 0:00:04]}  e3 {[%clk 0:00:24]} 38. Nd4 {[%clk 0:00:04]}  Bf3 {[%clk 0:00:22]} 39. a7 {[%clk 0:00:04]}  e2 {[%clk 0:00:22]} 40. Re6 {[%clk 0:00:04]}  Rf8 {[%clk 0:00:22]} 41. Re3 {[%clk 0:00:00]}  Bh5 {[%clk 0:00:22]} 0-1


[Site "https://www.chess.com"]

[Event "Titled Tuesday Blitz August 22 Early 2023"]
[White "Chen, Minda"]
[Black "Nilsen, Tobias Lang"]
[WhiteFideId "30937000"]
[BlackFideId "1521624"]
[WhiteElo "2067"]
[BlackElo "2433"]
[Result "0-1"]
[Round "4"]
[TimeControl "180+1"]
[Date "2023.08.22"]
[WhiteClock "0:00:08"]
[BlackClock "0:00:10"]
[Board "214"]

1. d4 {[%clk 0:02:55]}  d5 {[%clk 0:02:58]} 2. c4 {[%clk 0:02:53]}  c6 {[%clk 0:02:59]} 3. Nc3 {[%clk 0:02:53]}  Nf6 {[%clk 0:02:58]} 4. Nf3 {[%clk 0:02:52]}  dxc4 {[%clk 0:02:58]} 5. a4 {[%clk 0:02:51]}  Bf5 {[%clk 0:02:57]} 6. Ne5 {[%clk 0:02:51]}  Nbd7 {[%clk 0:02:55]} 7. Nxc4 {[%clk 0:02:50]}  Qc7 {[%clk 0:02:56]} 8. g3 {[%clk 0:02:50]}  e5 {[%clk 0:02:54]} 9. dxe5 {[%clk 0:02:49]}  Nxe5 {[%clk 0:02:55]} 10. Bf4 {[%clk 0:02:49]}  Nfd7 {[%clk 0:02:55]} 11. Bg2 {[%clk 0:02:47]}  g5 {[%clk 0:02:55]} 12. Ne3 {[%clk 0:02:44]}  gxf4 {[%clk 0:02:46]} 13. Nxf5 {[%clk 0:02:44]}  O-O-O {[%clk 0:02:45]} 14. Qc2 {[%clk 0:02:26]}  fxg3 {[%clk 0:02:38]} 15. hxg3 {[%clk 0:02:25]}  a5 {[%clk 0:02:24]} 16. O-O {[%clk 0:02:21]}  h5 {[%clk 0:02:24]} 17. Rfd1 {[%clk 0:02:03]}  Ng4 {[%clk 0:01:53]} 18. Rac1 {[%clk 0:01:31]}  h4 {[%clk 0:01:27]} 19. Nxh4 {[%clk 0:00:31]}  Rxh4 {[%clk 0:01:25]} 20. gxh4 {[%clk 0:00:31]}  Bc5 {[%clk 0:00:58]} 21. Ne4 {[%clk 0:00:22]}  Bxf2+ {[%clk 0:00:56]} 22. Nxf2 {[%clk 0:00:21]}  Qh2+ {[%clk 0:00:56]} 23. Kf1 {[%clk 0:00:20]}  Ne3+ {[%clk 0:00:57]} 24. Ke1 {[%clk 0:00:17]}  Nxg2+ {[%clk 0:00:13]} 25. Kd2 {[%clk 0:00:13]}  Qf4+ {[%clk 0:00:13]} 26. Kc3 {[%clk 0:00:09]}  Qb4+ {[%clk 0:00:13]} 27. Kd3 {[%clk 0:00:08]}  Nc5# {[%clk 0:00:10]} 0-1


[Site "https://www.chess.com"]

[Event "Titled Tuesday Blitz August 22 Early 2023"]
[White "abelmat"]
[Black "Farmani Anosheh, Armin"]
[BlackFideId "24613240"]
[WhiteElo "1915"]
[BlackElo "2429"]
[Result "0-1"]
[Round "4"]
[TimeControl "180+1"]
[Date "2023.08.22"]
[WhiteClock "0:00:00"]
[BlackClock "0:00:08"]
[Board "215"]

1. d4 {[%clk 0:02:54]}  d5 {[%clk 0:02:58]} 2. c4 {[%clk 0:02:54]}  e6 {[%clk 0:02:59]} 3. Nf3 {[%clk 0:02:54]}  Nf6 {[%clk 0:02:58]} 4. Nc3 {[%clk 0:02:53]}  c6 {[%clk 0:02:58]} 5. e3 {[%clk 0:02:50]}  Nbd7 {[%clk 0:02:58]} 6. Bd3 {[%clk 0:02:48]}  dxc4 {[%clk 0:02:54]} 7. Bxc4 {[%clk 0:02:49]}  b5 {[%clk 0:02:54]} 8. Bd3 {[%clk 0:02:48]}  Bb7 {[%clk 0:02:54]} 9. e4 {[%clk 0:02:44]}  b4 {[%clk 0:02:52]} 10. e5 {[%clk 0:02:43]}  bxc3 {[%clk 0:02:48]} 11. exf6 {[%clk 0:02:43]}  cxb2 {[%clk 0:02:33]} 12. fxg7 {[%clk 0:02:35]}  Bxg7 {[%clk 0:02:18]} 13. Bxb2 {[%clk 0:02:34]}  c5 {[%clk 0:02:17]} 14. O-O {[%clk 0:02:08]}  Rb8 {[%clk 0:02:06]} 15. Ba3 {[%clk 0:01:50]}  Qa5 {[%clk 0:02:03]} 16. Bxc5 {[%clk 0:01:35]}  Nxc5 {[%clk 0:02:02]} 17. dxc5 {[%clk 0:01:32]}  Bxa1 {[%clk 0:01:59]} 18. Qxa1 {[%clk 0:01:24]}  Ke7 {[%clk 0:01:59]} 19. Qd4 {[%clk 0:00:57]}  Bxf3 {[%clk 0:01:54]} 20. Qd6+ {[%clk 0:00:52]}  Kf6 {[%clk 0:01:54]} 21. Qf4+ {[%clk 0:00:42]}  Kg7 {[%clk 0:01:55]} 22. Qg3+ {[%clk 0:00:31]}  Bg4 {[%clk 0:01:40]} 23. Qxg4+ {[%clk 0:00:28]}  Kf8 {[%clk 0:01:40]} 24. Qd4 {[%clk 0:00:22]}  Rg8 {[%clk 0:01:22]} 25. Qd6+ {[%clk 0:00:20]}  Kg7 {[%clk 0:01:22]} 26. Qg3+ {[%clk 0:00:17]}  Kh8 {[%clk 0:01:02]} 27. Qe5+ {[%clk 0:00:15]}  f6 {[%clk 0:01:02]} 28. Qxf6+ {[%clk 0:00:14]}  Rg7 {[%clk 0:01:03]} 29. Rc1 {[%clk 0:00:11]}  Qd2 {[%clk 0:00:59]} 30. Qc3 {[%clk 0:00:09]}  Qxc3 {[%clk 0:00:22]} 31. Rxc3 {[%clk 0:00:09]}  Rc7 {[%clk 0:00:21]} 32. Be4 {[%clk 0:00:08]}  Rd8 {[%clk 0:00:18]} 33. g3 {[%clk 0:00:06]}  Rd4 {[%clk 0:00:18]} 34. Bf3 {[%clk 0:00:06]}  e5 {[%clk 0:00:18]} 35. Bg4 {[%clk 0:00:05]}  Kg7 {[%clk 0:00:08]} 36. Bf3 {[%clk 0:00:02]}  e4 {[%clk 0:00:08]} 37. Bh5 {[%clk 0:00:00]}  Rd5 {[%clk 0:00:08]} 0-1


[Site "https://www.chess.com"]

[Event "Titled Tuesday Blitz August 22 Early 2023"]
[White "cthake"]
[Black "Vivas Zamora, Fabian Ernesto"]
[BlackFideId "3902480"]
[WhiteElo "1829"]
[BlackElo "2427"]
[Result "1-0"]
[Round "4"]
[TimeControl "180+1"]
[Date "2023.08.22"]
[WhiteClock "0:00:43"]
[BlackClock "0:00:00"]
[Board "216"]

1. e4 {[%clk 0:03:00]}  c5 {[%clk 0:02:53]} 2. Nc3 {[%clk 0:02:58]}  g6 {[%clk 0:02:50]} 3. f4 {[%clk 0:02:58]}  Bg7 {[%clk 0:02:49]} 4. Nf3 {[%clk 0:02:58]}  Nc6 {[%clk 0:02:49]} 5. Bc4 {[%clk 0:02:57]}  e6 {[%clk 0:02:50]} 6. O-O {[%clk 0:02:54]}  Nge7 {[%clk 0:02:50]} 7. Qe1 {[%clk 0:02:48]}  O-O {[%clk 0:02:45]} 8. d3 {[%clk 0:02:48]}  d5 {[%clk 0:02:44]} 9. Bb3 {[%clk 0:02:47]}  b5 {[%clk 0:02:37]} 10. a4 {[%clk 0:02:35]}  b4 {[%clk 0:02:22]} 11. Ne2 {[%clk 0:02:31]}  Ba6 {[%clk 0:02:15]} 12. Be3 {[%clk 0:02:12]}  c4 {[%clk 0:01:46]} 13. dxc4 {[%clk 0:02:07]}  dxc4 {[%clk 0:01:47]} 14. Rd1 {[%clk 0:02:07]}  Qa5 {[%clk 0:01:43]} 15. Ba2 {[%clk 0:02:01]}  Qxa4 {[%clk 0:01:43]} 16. Bb1 {[%clk 0:01:50]}  Bxb2 {[%clk 0:01:43]} 17. Qh4 {[%clk 0:01:49]}  Bg7 {[%clk 0:01:29]} 18. f5 {[%clk 0:01:49]}  exf5 {[%clk 0:01:25]} 19. Bh6 {[%clk 0:01:43]}  f6 {[%clk 0:00:43]} 20. Bxg7 {[%clk 0:01:37]}  Kxg7 {[%clk 0:00:43]} 21. e5 {[%clk 0:01:34]}  c3 {[%clk 0:00:27]} 22. exf6+ {[%clk 0:01:31]}  Rxf6 {[%clk 0:00:28]} 23. Rfe1 {[%clk 0:01:08]}  Bxe2 {[%clk 0:00:23]} 24. Rxe2 {[%clk 0:01:08]}  Qb5 {[%clk 0:00:23]} 25. Rde1 {[%clk 0:01:06]}  Qc5+ {[%clk 0:00:20]} 26. Kh1 {[%clk 0:01:00]}  h6 {[%clk 0:00:17]} 27. Ba2 {[%clk 0:00:56]}  a5 {[%clk 0:00:15]} 28. Qf4 {[%clk 0:00:53]}  a4 {[%clk 0:00:14]} 29. Qc7 {[%clk 0:00:53]}  Re8 {[%clk 0:00:09]} 30. Ne5 {[%clk 0:00:49]}  b3 {[%clk 0:00:07]} 31. cxb3 {[%clk 0:00:45]}  axb3 {[%clk 0:00:06]} 32. Bxb3 {[%clk 0:00:45]}  Qd4 {[%clk 0:00:00]} 33. Nxc6 {[%clk 0:00:43]} 1-0


[Site "https://www.chess.com"]

[Event "Titled Tuesday Blitz August 22 Early 2023"]
[White "elcala"]
[Black "Baghdasaryan, Vahe"]
[BlackFideId "13303139"]
[WhiteElo "1701"]
[BlackElo "2424"]
[Result "0-1"]
[Round "4"]
[TimeControl "180+1"]
[Date "2023.08.22"]
[WhiteClock "0:00:00"]
[BlackClock "0:00:10"]
[Board "217"]

1. d4 {[%clk 0:03:00]}  d5 {[%clk 0:02:47]} 2. Nf3 {[%clk 0:03:01]}  Nf6 {[%clk 0:02:46]} 3. Bf4 {[%clk 0:03:01]}  Bf5 {[%clk 0:02:45]} 4. e3 {[%clk 0:02:59]}  e6 {[%clk 0:02:45]} 5. Bd3 {[%clk 0:02:57]}  Bxd3 {[%clk 0:02:44]} 6. Qxd3 {[%clk 0:02:56]}  Nbd7 {[%clk 0:02:43]} 7. Nbd2 {[%clk 0:02:54]}  Be7 {[%clk 0:02:36]} 8. O-O {[%clk 0:02:50]}  O-O {[%clk 0:02:13]} 9. h3 {[%clk 0:02:48]}  c5 {[%clk 0:02:10]} 10. c3 {[%clk 0:02:46]}  c4 {[%clk 0:02:09]} 11. Qe2 {[%clk 0:02:38]}  b5 {[%clk 0:02:07]} 12. e4 {[%clk 0:02:34]}  dxe4 {[%clk 0:02:04]} 13. Nxe4 {[%clk 0:02:34]}  Nxe4 {[%clk 0:02:03]} 14. Qxe4 {[%clk 0:02:33]}  Nf6 {[%clk 0:02:00]} 15. Qe2 {[%clk 0:02:18]}  Qd5 {[%clk 0:01:55]} 16. Qe5 {[%clk 0:02:00]}  a5 {[%clk 0:01:48]} 17. Qxd5 {[%clk 0:01:54]}  Nxd5 {[%clk 0:01:49]} 18. Bg5 {[%clk 0:01:52]}  Bd6 {[%clk 0:01:42]} 19. a3 {[%clk 0:01:43]}  b4 {[%clk 0:01:35]} 20. axb4 {[%clk 0:01:42]}  axb4 {[%clk 0:01:32]} 21. Bd2 {[%clk 0:01:42]}  bxc3 {[%clk 0:01:21]} 22. bxc3 {[%clk 0:01:35]}  f6 {[%clk 0:01:19]} 23. Rfb1 {[%clk 0:00:58]}  Bf4 {[%clk 0:01:00]} 24. Bxf4 {[%clk 0:00:48]}  Nxf4 {[%clk 0:00:58]} 25. Rxa8 {[%clk 0:00:36]}  Rxa8 {[%clk 0:00:55]} 26. Rb4 {[%clk 0:00:37]}  Ne2+ {[%clk 0:00:19]} 27. Kh2 {[%clk 0:00:32]}  Nxc3 {[%clk 0:00:20]} 28. Rxc4 {[%clk 0:00:32]}  Nd5 {[%clk 0:00:20]} 29. Rc6 {[%clk 0:00:30]}  Kf7 {[%clk 0:00:19]} 30. Ne1 {[%clk 0:00:22]}  Ra2 {[%clk 0:00:19]} 31. Nd3 {[%clk 0:00:21]}  Rd2 {[%clk 0:00:19]} 32. Nc5 {[%clk 0:00:20]}  Rxf2 {[%clk 0:00:18]} 33. Rxe6 {[%clk 0:00:15]}  Nf4 {[%clk 0:00:16]} 34. Rd6 {[%clk 0:00:13]}  Rxg2+ {[%clk 0:00:16]} 35. Kh1 {[%clk 0:00:12]}  Rd2 {[%clk 0:00:17]} 36. Rd7+ {[%clk 0:00:11]}  Kg6 {[%clk 0:00:16]} 37. Ne4 {[%clk 0:00:11]}  Rd1+ {[%clk 0:00:15]} 38. Kh2 {[%clk 0:00:10]}  Ne2 {[%clk 0:00:15]} 39. d5 {[%clk 0:00:06]}  Nf4 {[%clk 0:00:14]} 40. d6 {[%clk 0:00:05]}  Rd3 {[%clk 0:00:15]} 41. Nc5 {[%clk 0:00:04]}  Rxh3+ {[%clk 0:00:15]} 42. Kg1 {[%clk 0:00:03]}  Rc3 {[%clk 0:00:14]} 43. Rd8 {[%clk 0:00:03]}  Rxc5 {[%clk 0:00:14]} 44. d7 {[%clk 0:00:04]}  Ne6 {[%clk 0:00:14]} 45. Re8 {[%clk 0:00:00]}  Rc1+ {[%clk 0:00:10]} 0-1


[Site "https://www.chess.com"]

[Event "Titled Tuesday Blitz August 22 Early 2023"]
[White "Berezin, Viktor"]
[Black "Li, Hui"]
[WhiteFideId "14107872"]
[BlackFideId "15400310"]
[WhiteElo "2488"]
[BlackElo "2304"]
[Result "0-1"]
[Round "4"]
[TimeControl "180+1"]
[Date "2023.08.22"]
[WhiteClock "0:00:00"]
[BlackClock "0:00:06"]
[Board "219"]

1. d4 {[%clk 0:02:13]}  d5 {[%clk 0:02:59]} 2. c4 {[%clk 0:02:12]}  e6 {[%clk 0:02:59]} 3. Nf3 {[%clk 0:02:12]}  Nf6 {[%clk 0:02:59]} 4. g3 {[%clk 0:02:11]}  Be7 {[%clk 0:03:00]} 5. Bg2 {[%clk 0:02:12]}  O-O {[%clk 0:03:00]} 6. O-O {[%clk 0:02:12]}  dxc4 {[%clk 0:03:01]} 7. Qc2 {[%clk 0:02:13]}  a6 {[%clk 0:03:02]} 8. a4 {[%clk 0:02:09]}  Bd7 {[%clk 0:03:02]} 9. Qxc4 {[%clk 0:02:07]}  Bc6 {[%clk 0:03:02]} 10. Bg5 {[%clk 0:02:06]}  Bd5 {[%clk 0:03:00]} 11. Qc2 {[%clk 0:02:05]}  Be4 {[%clk 0:03:00]} 12. Qd1 {[%clk 0:02:01]}  h6 {[%clk 0:02:47]} 13. Bf4 {[%clk 0:02:00]}  a5 {[%clk 0:02:30]} 14. Nc3 {[%clk 0:01:51]}  Bxf3 {[%clk 0:02:29]} 15. Bxf3 {[%clk 0:01:48]}  c6 {[%clk 0:02:29]} 16. e3 {[%clk 0:01:45]}  Na6 {[%clk 0:02:29]} 17. Kg2 {[%clk 0:01:42]}  Nb4 {[%clk 0:02:29]} 18. h4 {[%clk 0:01:38]}  Bd6 {[%clk 0:02:24]} 19. h5 {[%clk 0:01:32]}  Bxf4 {[%clk 0:02:21]} 20. gxf4 {[%clk 0:01:30]}  Nfd5 {[%clk 0:02:12]} 21. Rh1 {[%clk 0:01:27]}  Qe7 {[%clk 0:02:01]} 22. Be4 {[%clk 0:01:19]}  Rfd8 {[%clk 0:01:57]} 23. Qf3 {[%clk 0:01:13]}  Nf6 {[%clk 0:01:50]} 24. Rag1 {[%clk 0:01:09]}  Kh8 {[%clk 0:01:45]} 25. Rh3 {[%clk 0:01:04]}  Rg8 {[%clk 0:01:33]} 26. Bb1 {[%clk 0:01:01]}  Rad8 {[%clk 0:01:25]} 27. Rg3 {[%clk 0:00:59]}  c5 {[%clk 0:01:21]} 28. dxc5 {[%clk 0:00:19]}  Qxc5 {[%clk 0:01:21]} 29. Rh3 {[%clk 0:00:18]}  Nbd5 {[%clk 0:00:37]} 30. Ne2 {[%clk 0:00:15]}  Nb4 {[%clk 0:00:31]} 31. Nd4 {[%clk 0:00:14]}  Qd5 {[%clk 0:00:20]} 32. Kh2 {[%clk 0:00:13]}  Qxf3 {[%clk 0:00:20]} 33. Nxf3 {[%clk 0:00:14]}  Nd3 {[%clk 0:00:14]} 34. Bxd3 {[%clk 0:00:13]}  Rxd3 {[%clk 0:00:15]} 35. Ne5 {[%clk 0:00:14]}  Rd2 {[%clk 0:00:14]} 36. Nxf7+ {[%clk 0:00:13]}  Kh7 {[%clk 0:00:14]} 37. Rg2 {[%clk 0:00:13]}  Rxb2 {[%clk 0:00:11]} 38. Ne5 {[%clk 0:00:05]}  Ne4 {[%clk 0:00:10]} 39. Nd3 {[%clk 0:00:03]}  Rd2 {[%clk 0:00:10]} 40. Ne5 {[%clk 0:00:00]}  Rxf2 {[%clk 0:00:06]} 0-1


[Site "https://www.chess.com"]

[Event "Titled Tuesday Blitz August 22 Early 2023"]
[White "Janaszak, Dawid"]
[Black "Shapiro, Daniel"]
[WhiteFideId "1119206"]
[BlackFideId "2001780"]
[WhiteElo "2477"]
[BlackElo "2300"]
[Result "1-0"]
[Round "4"]
[TimeControl "180+1"]
[Date "2023.08.22"]
[WhiteClock "0:00:22"]
[BlackClock "0:00:00"]
[Board "221"]

1. d4 {[%clk 0:03:00]}  Nf6 {[%clk 0:02:59]} 2. Nc3 {[%clk 0:03:01]}  d5 {[%clk 0:02:58]} 3. Bf4 {[%clk 0:03:01]}  a6 {[%clk 0:02:58]} 4. e3 {[%clk 0:02:59]}  e6 {[%clk 0:02:58]} 5. a3 {[%clk 0:02:58]}  Bd6 {[%clk 0:02:58]} 6. Nf3 {[%clk 0:02:59]}  c5 {[%clk 0:02:55]} 7. Ne5 {[%clk 0:02:58]}  Nc6 {[%clk 0:02:51]} 8. Nxc6 {[%clk 0:02:51]}  bxc6 {[%clk 0:02:50]} 9. dxc5 {[%clk 0:02:49]}  Bxc5 {[%clk 0:02:40]} 10. Bd3 {[%clk 0:02:48]}  O-O {[%clk 0:02:39]} 11. O-O {[%clk 0:02:48]}  Bd6 {[%clk 0:02:35]} 12. Bg5 {[%clk 0:02:46]}  h6 {[%clk 0:02:34]} 13. Bh4 {[%clk 0:02:46]}  e5 {[%clk 0:02:29]} 14. e4 {[%clk 0:02:43]}  Be6 {[%clk 0:02:29]} 15. Qf3 {[%clk 0:02:36]}  Be7 {[%clk 0:02:26]} 16. Rfe1 {[%clk 0:02:28]}  d4 {[%clk 0:02:23]} 17. Na4 {[%clk 0:02:21]}  Nd7 {[%clk 0:02:14]} 18. Bxe7 {[%clk 0:02:16]}  Qxe7 {[%clk 0:02:15]} 19. c3 {[%clk 0:02:08]}  Bb3 {[%clk 0:02:08]} 20. cxd4 {[%clk 0:01:59]}  Bxa4 {[%clk 0:02:06]} 21. d5 {[%clk 0:01:58]}  Bb5 {[%clk 0:02:00]} 22. Bxb5 {[%clk 0:01:57]}  cxb5 {[%clk 0:01:58]} 23. Rec1 {[%clk 0:01:55]}  Rac8 {[%clk 0:01:54]} 24. g3 {[%clk 0:01:54]}  Nb6 {[%clk 0:01:52]} 25. Qe2 {[%clk 0:01:44]}  Rc5 {[%clk 0:01:47]} 26. Rd1 {[%clk 0:01:41]}  Qd6 {[%clk 0:01:46]} 27. b3 {[%clk 0:01:29]}  Rfc8 {[%clk 0:01:45]} 28. Rd2 {[%clk 0:01:28]}  Rc3 {[%clk 0:01:41]} 29. Rb2 {[%clk 0:01:29]}  f5 {[%clk 0:01:19]} 30. exf5 {[%clk 0:01:24]}  Qxd5 {[%clk 0:01:07]} 31. f6 {[%clk 0:01:20]}  e4 {[%clk 0:00:48]} 32. Rd1 {[%clk 0:01:16]}  Rd3 {[%clk 0:00:46]} 33. Re1 {[%clk 0:01:15]}  Re8 {[%clk 0:00:41]} 34. Qg4 {[%clk 0:01:13]}  Qg5 {[%clk 0:00:36]} 35. Rxe4 {[%clk 0:01:05]}  Qxg4 {[%clk 0:00:35]} 36. Rxg4 {[%clk 0:01:05]}  g5 {[%clk 0:00:33]} 37. h4 {[%clk 0:01:05]}  Re5 {[%clk 0:00:32]} 38. Rc2 {[%clk 0:00:58]}  Nd5 {[%clk 0:00:30]} 39. Rc6 {[%clk 0:00:51]}  Kf7 {[%clk 0:00:27]} 40. Rxa6 {[%clk 0:00:47]}  Rxb3 {[%clk 0:00:27]} 41. hxg5 {[%clk 0:00:46]}  hxg5 {[%clk 0:00:27]} 42. Rd4 {[%clk 0:00:40]}  Nxf6 {[%clk 0:00:24]} 43. Rdd6 {[%clk 0:00:41]}  Rf5 {[%clk 0:00:23]} 44. Ra7+ {[%clk 0:00:38]}  Kg6 {[%clk 0:00:23]} 45. Rd2 {[%clk 0:00:33]}  Rff3 {[%clk 0:00:20]} 46. Kg2 {[%clk 0:00:30]}  g4 {[%clk 0:00:18]} 47. Ra6 {[%clk 0:00:29]}  Kf5 {[%clk 0:00:17]} 48. Rc6 {[%clk 0:00:26]}  Rfc3 {[%clk 0:00:16]} 49. Rcd6 {[%clk 0:00:26]}  Rc5 {[%clk 0:00:15]} 50. R2d4 {[%clk 0:00:26]}  Rbc3 {[%clk 0:00:13]} 51. Rf4+ {[%clk 0:00:26]}  Ke5 {[%clk 0:00:12]} 52. Rdxf6 {[%clk 0:00:27]}  Rxa3 {[%clk 0:00:12]} 53. R4f5+ {[%clk 0:00:23]}  Kd4 {[%clk 0:00:00]} 54. Rd6+ {[%clk 0:00:22]} 1-0


[Site "https://www.chess.com"]

[Event "Titled Tuesday Blitz August 22 Early 2023"]
[White "Mmukka"]
[Black "Kaganskiy, Gleb"]
[BlackFideId "4132025"]
[WhiteElo "2466"]
[BlackElo "2301"]
[Result "0-1"]
[Round "4"]
[TimeControl "180+1"]
[Date "2023.08.22"]
[WhiteClock "0:00:00"]
[BlackClock "0:00:10"]
[Board "222"]

1. e4 {[%clk 0:02:59]}  c6 {[%clk 0:02:58]} 2. d4 {[%clk 0:02:59]}  d5 {[%clk 0:02:59]} 3. exd5 {[%clk 0:02:59]}  cxd5 {[%clk 0:02:59]} 4. Bd3 {[%clk 0:02:59]}  Nc6 {[%clk 0:02:58]} 5. c3 {[%clk 0:02:59]}  Nf6 {[%clk 0:02:58]} 6. h3 {[%clk 0:03:00]}  e5 {[%clk 0:02:52]} 7. dxe5 {[%clk 0:02:54]}  Nxe5 {[%clk 0:02:53]} 8. Nf3 {[%clk 0:02:52]}  Bd6 {[%clk 0:02:53]} 9. O-O {[%clk 0:02:43]}  O-O {[%clk 0:02:53]} 10. Bg5 {[%clk 0:02:39]}  h6 {[%clk 0:02:47]} 11. Bh4 {[%clk 0:02:39]}  g5 {[%clk 0:02:47]} 12. Bg3 {[%clk 0:02:37]}  Nxd3 {[%clk 0:02:46]} 13. Qxd3 {[%clk 0:02:36]}  Bxg3 {[%clk 0:02:46]} 14. fxg3 {[%clk 0:02:36]}  Qb6+ {[%clk 0:02:45]} 15. Nd4 {[%clk 0:02:34]}  Qxb2 {[%clk 0:02:44]} 16. Rxf6 {[%clk 0:02:03]}  Qxa1 {[%clk 0:02:44]} 17. Rf2 {[%clk 0:02:04]}  Re8 {[%clk 0:02:38]} 18. Qd1 {[%clk 0:01:40]}  Bd7 {[%clk 0:01:17]} 19. Qf1 {[%clk 0:01:16]}  Ba4 {[%clk 0:01:07]} 20. Nf5 {[%clk 0:01:03]}  Re6 {[%clk 0:01:02]} 21. Kh2 {[%clk 0:00:46]}  Rae8 {[%clk 0:01:01]} 22. Qd3 {[%clk 0:00:38]}  a6 {[%clk 0:00:42]} 23. Nd4 {[%clk 0:00:25]}  Re1 {[%clk 0:00:34]} 24. Qf5 {[%clk 0:00:20]}  R8e7 {[%clk 0:00:32]} 25. Qc8+ {[%clk 0:00:12]}  Be8 {[%clk 0:00:28]} 26. Nf5 {[%clk 0:00:12]}  Qxb1 {[%clk 0:00:23]} 27. Nxe7+ {[%clk 0:00:12]}  Rxe7 {[%clk 0:00:23]} 28. g4 {[%clk 0:00:10]}  Qe4 {[%clk 0:00:22]} 29. g3 {[%clk 0:00:03]}  Kg7 {[%clk 0:00:21]} 30. Qc5 {[%clk 0:00:03]}  Qe5 {[%clk 0:00:19]} 31. Kg2 {[%clk 0:00:02]}  d4 {[%clk 0:00:18]} 32. cxd4 {[%clk 0:00:02]}  Bc6+ {[%clk 0:00:17]} 33. Kh2 {[%clk 0:00:01]}  Qe4 {[%clk 0:00:15]} 34. d5 {[%clk 0:00:01]}  Bxd5 {[%clk 0:00:14]} 35. Qc3+ {[%clk 0:00:01]}  Re5 {[%clk 0:00:13]} 36. Qc1 {[%clk 0:00:01]}  Re6 {[%clk 0:00:11]} 37. Qf1 {[%clk 0:00:00]}  f6 {[%clk 0:00:10]} 0-1


[Site "https://www.chess.com"]

[Event "Titled Tuesday Blitz August 22 Early 2023"]
[White "Levine, David"]
[Black "Petrova, Irina"]
[WhiteFideId "2011611"]
[BlackFideId "14124122"]
[WhiteElo "2020"]
[BlackElo "2353"]
[Result "0-1"]
[Round "4"]
[TimeControl "180+1"]
[Date "2023.08.22"]
[WhiteClock "0:00:22"]
[BlackClock "0:01:05"]
[Board "228"]

1. d4 {[%clk 0:03:00]}  d6 {[%clk 0:03:00]} 2. Nf3 {[%clk 0:02:58]}  g6 {[%clk 0:03:00]} 3. g3 {[%clk 0:02:58]}  Bg7 {[%clk 0:03:00]} 4. Bg2 {[%clk 0:02:58]}  Nf6 {[%clk 0:03:00]} 5. O-O {[%clk 0:02:58]}  O-O {[%clk 0:03:01]} 6. c4 {[%clk 0:02:57]}  Nc6 {[%clk 0:03:02]} 7. Nc3 {[%clk 0:02:57]}  Bf5 {[%clk 0:03:02]} 8. Ne1 {[%clk 0:02:54]}  e5 {[%clk 0:03:01]} 9. d5 {[%clk 0:02:53]}  Ne7 {[%clk 0:03:01]} 10. e4 {[%clk 0:02:53]}  Bd7 {[%clk 0:03:01]} 11. Nd3 {[%clk 0:02:51]}  Nh5 {[%clk 0:03:01]} 12. Bf3 {[%clk 0:02:40]}  Nf6 {[%clk 0:02:56]} 13. Bg2 {[%clk 0:02:40]}  Ne8 {[%clk 0:02:56]} 14. f4 {[%clk 0:02:38]}  f5 {[%clk 0:02:51]} 15. fxe5 {[%clk 0:02:34]}  dxe5 {[%clk 0:02:52]} 16. c5 {[%clk 0:02:21]}  b6 {[%clk 0:02:50]} 17. c6 {[%clk 0:02:20]}  Bc8 {[%clk 0:02:47]} 18. b4 {[%clk 0:02:17]}  Nd6 {[%clk 0:02:47]} 19. Bg5 {[%clk 0:02:09]}  h6 {[%clk 0:02:43]} 20. Bxe7 {[%clk 0:02:08]}  Qxe7 {[%clk 0:02:44]} 21. a4 {[%clk 0:02:01]}  a5 {[%clk 0:02:34]} 22. b5 {[%clk 0:01:59]}  Nxe4 {[%clk 0:02:24]} 23. Nxe4 {[%clk 0:01:59]}  fxe4 {[%clk 0:02:25]} 24. Bxe4 {[%clk 0:01:59]}  Bf5 {[%clk 0:02:26]} 25. Qe2 {[%clk 0:01:58]}  Rf7 {[%clk 0:02:19]} 26. g4 {[%clk 0:01:50]}  Bxe4 {[%clk 0:02:14]} 27. Qxe4 {[%clk 0:01:50]}  Raf8 {[%clk 0:02:15]} 28. Rae1 {[%clk 0:01:37]}  Qh4 {[%clk 0:02:08]} 29. Kg2 {[%clk 0:01:23]}  Qe7 {[%clk 0:02:00]} 30. Rxf7 {[%clk 0:01:17]}  Rxf7 {[%clk 0:02:01]} 31. Nxe5 {[%clk 0:01:14]}  Bxe5 {[%clk 0:01:44]} 32. Qxe5 {[%clk 0:01:14]}  Qh4 {[%clk 0:01:41]} 33. Qe8+ {[%clk 0:01:05]}  Kg7 {[%clk 0:01:40]} 34. Qe5+ {[%clk 0:01:03]}  Kh7 {[%clk 0:01:39]} 35. Qg3 {[%clk 0:01:01]}  Qf6 {[%clk 0:01:33]} 36. d6 {[%clk 0:01:00]}  cxd6 {[%clk 0:01:24]} 37. Qe3 {[%clk 0:00:57]}  d5 {[%clk 0:01:20]} 38. Re2 {[%clk 0:00:50]}  d4 {[%clk 0:01:19]} 39. Qe5 {[%clk 0:00:33]}  Qf1+ {[%clk 0:01:18]} 40. Kg3 {[%clk 0:00:33]}  Qf3+ {[%clk 0:01:06]} 41. Kh4 {[%clk 0:00:32]}  g5+ {[%clk 0:01:05]} 42. Kh5 {[%clk 0:00:22]}  Qh3# {[%clk 0:01:05]} 0-1


[Site "https://www.chess.com"]